fUST/lending_fUST_20240608
["ID","MTS","AMOUNT","RATE_DAILY","PERIOD"]
[328771650,1717780251212,-185.738117,0.00019247,2]
[328771651,1717780251222,-185.738126,0.00019247,2]
[328771652,1717780251232,-153.0,0.00019296,2]
[328771653,1717780251241,-795.07505699,0.00019398,2]
[328771654,1717780251251,-648.13384058,0.000194,2]
[328771655,1717780251260,-153.0,0.00019415,2]
[328771656,1717780251270,-153.0,0.00019415,2]
[328771657,1717780251280,-306.0,0.00019415,2]
[328771658,1717780251291,-153.0,0.00019415,2]
[328771659,1717780251300,-153.0,0.00019415,2]
[328771660,1717780251310,-153.0,0.00019415,2]
[328771661,1717780251321,-1103.301613,0.000195,2]
[328771662,1717780251331,-795.07505699,0.00019649,2]
[328771663,1717780251350,-2000.0,0.000197,2]
[328771664,1717780251360,-1106.870042,0.000198,2]
[328771665,1717780251371,-1106.870045,0.000198,2]
[328771666,1717780251382,-151.0,0.000198,2]
[328771667,1717780251392,-511.1,0.00019857,3]
[328771668,1717780251403,-795.07505699,0.000199,2]
[328771669,1717780251413,-153.0,0.00019963,2]
[328771670,1717780251424,-153.0,0.00019963,2]
[328771671,1717780251434,-153.0,0.00019963,2]
[328771672,1717780251443,-153.0,0.00019963,2]
[328771673,1717780251453,-153.0,0.00019963,2]
[328771674,1717780251463,-5880.45582766,0.00019973,2]
[328771675,1717780251473,-571.160408,0.00019973,2]
[328771676,1717780251483,-571.160409,0.00019973,2]
[328771677,1717780251494,-154.95351395,0.00019977,2]
[328771678,1717780251508,-5727.89608574,0.00019979,2]
[328771679,1717780251518,-189.13190387,0.00019989,2]
[328771680,1717780251528,-281.19763205,0.0002,2]
[328771681,1717780251538,-528.82048607,0.0002,4]
[328771682,1717780251547,-154.9690062,0.0002,2]
[328771683,1717780251557,-168.5019287,0.0002,2]
[328771684,1717780251566,-270.0,0.0002,2]
[328771685,1717780251577,-160.0,0.0002,2]
[328771686,1717780251591,-154.95351395,0.0002,2]
[328771687,1717780251601,-435.0,0.0002,2]
[328771688,1717780251611,-1455.44491102,0.0002,3]
[328771689,1717780251620,-472.0249342,0.0002,2]
[328771690,1717780251630,-931.88170639,0.0002,2]
[328771691,1717780251639,-1354.67102739,0.0002,2]
[328771692,1717780251649,-36476.34984556,0.0002,7]
[328771693,1717780251659,-1005.37378327,0.0002,2]
[328771694,1717780251669,-1000.0,0.0002,2]
[328771695,1717780251678,-938.35106517,0.000201,2]
[328771696,1717780251689,-511.1,0.00020355,3]
[328771697,1717780251698,-621.40669203,0.0002037,2]
[328771698,1717780251708,-160.0,0.000205,2]
[328771699,1717780251717,-3000.0,0.00020547,2]
[328771700,1717780251726,-3000.0,0.00020547,2]
[328771701,1717780251736,-3000.0,0.00020547,2]
[328771702,1717780251745,-3000.0,0.00020547,2]
[328771703,1717780251755,-2350.27944799,0.00020547,2]
[328771704,1717780251771,-298.15905011,0.00020547,2]
[328771705,1717780251780,-590.27173926,0.0002066,7]
[328771706,1717780251790,-205.1978842,0.00020767,2]
[328771707,1717780251803,-205.1978842,0.00020767,2]
[328771708,1717780251812,-511.1,0.00020852,3]
[328771709,1717780251823,-151.0,0.00020852,3]
[328771710,1717780251833,-17078.1310245,0.00020998,2]
[328771711,1717780251854,-622.95759644,0.00020998,2]
[328771712,1717780251863,-155.99896385,0.00020998,2]
[328771713,1717780251873,-187.53020415,0.00020998,2]
[328771714,1717780251885,-156.53219785,0.00020998,2]
[328771715,1717780251895,-1690.17854487,0.00020998,2]
[328771716,1717780251904,-393.83302631,0.00021,2]
[328771717,1717780251913,-1939.72670863,0.00021,2]
[328771718,1717780251925,-6703.06069526,0.00021,2]
[328771719,1717780251938,-313.56105252,0.00021,2]
[328771720,1717780466920,154.95351395,9.999e-05,2]
[328771722,1717781015847,154.95351395,9.999e-05,2]
[328771726,1717781212149,-157.08712556,0.00017996,2]
[328771727,1717781212293,-8632.7591922,0.00017996,2]
[328771779,1717781434815,-945.46842875,0.00015,2]
[328771780,1717781434825,-2500.0,0.00017998,2]
[328771783,1717781434836,-1100.27196223,0.00017999,2]
[328771785,1717781434846,-2763.22163269,0.00018148,2]
[328771787,1717781434856,-9556.03797632,0.00018149,2]
[328771789,1717781434869,-15343.96202368,0.00018149,2]
[328771791,1717781434879,-1907.69111318,0.00018793,2]
[328771793,1717781434889,-15389.19817195,0.00018893,2]
[328771795,1717781434899,-662.90958937,0.000189,2]
[328771797,1717781434909,-2409.63345823,0.00018994,2]
[328771799,1717781434919,-190.40082049,0.00018994,2]
[328771801,1717781434930,-2485.17284427,0.00018994,2]
[328771803,1717781434940,-275.50564015,0.00018994,2]
[328771805,1717781434951,-383.3,0.00019756,3]
[328771807,1717781434960,-1907.69111312,0.0001989,2]
[328771809,1717781434972,-1354.67102739,0.0002,2]
[328771811,1717781434983,-472.0249342,0.00020077,2]
[328771813,1717781434992,-154.95351395,0.00020078,2]
[328771815,1717781435002,-281.19763205,0.00020078,2]
[328771816,1717781435012,-931.88170639,0.00020079,2]
[328771818,1717781435022,-938.35106517,0.00020177,2]
[328771820,1717781435034,-584.131166,0.00020178,2]
[328771823,1717781435045,-383.3,0.00020263,3]
[328771825,1717781435055,-620.0703346,0.0002032,2]
[328771826,1717781435066,-500.0,0.00020657,2]
[328771829,1717781435077,-500.0,0.00020657,2]
[328771830,1717781435087,-340.0,0.00020657,2]
[328771833,1717781435097,-383.3,0.0002077,3]
[328771835,1717781435107,-154.29731235,0.0002079,3]
[328771836,1717781435118,-190.95476576,0.00020897,2]
[328771838,1717781435128,-218.98,0.00020917,2]
[328771840,1717781435138,-522.502,0.00020917,2]
[328771842,1717781435149,-410.2665185,0.0002094,2]
[328771844,1717781435159,-205.1978842,0.0002094,2]
[328771846,1717781435169,-205.1978842,0.0002094,2]
[328771848,1717781435179,-205.1978842,0.0002094,2]
[328771850,1717781435190,-205.1978842,0.0002094,2]
[328771852,1717781435200,-205.1978842,0.0002094,2]
[328771854,1717781435212,-205.1978842,0.0002094,2]
[328771856,1717781435225,-205.1978842,0.0002094,2]
[328771859,1717781435236,-205.1978842,0.0002094,2]
[328771861,1717781435247,-409.0619738,0.0002094,2]
[328771863,1717781435258,-292.3309227,0.0002094,2]
[328771864,1717781435269,-292.3309227,0.0002094,2]
[328771866,1717781435279,-292.3309227,0.0002094,2]
[328771868,1717781435296,-1907.69111312,0.00020988,2]
[328771870,1717781435306,-1910.49735366,0.00020996,2]
[328771872,1717781435316,-154.9690062,0.00020996,2]
[328771874,1717781435326,-11093.31738993,0.00020996,2]
[328771877,1717781435336,-1521.75838762,0.00020996,2]
[328771878,1717781435345,-370.5716402,0.00020996,2]
[328771880,1717781435355,-500.0,0.00020996,2]
[328771882,1717781435364,-500.0,0.00020996,2]
[328771884,1717781435374,-500.0,0.00020996,2]
[328771886,1717781435384,-500.0,0.00020996,2]
[328771888,1717781435393,-500.0,0.00020996,2]
[328771890,1717781435404,-398.80851516,0.00020996,2]
[328771892,1717781435413,-500.0,0.00020996,2]
[328771894,1717781435423,-500.0,0.00020996,2]
[328771896,1717781435434,-500.0,0.00020996,2]
[328771898,1717781435443,-500.0,0.00020996,2]
[328771900,1717781435454,-500.0,0.00020996,2]
[328771902,1717781435464,-500.0,0.00020996,2]
[328771904,1717781435474,-500.0,0.00020996,2]
[328771906,1717781435484,-500.0,0.00020996,2]
[328771908,1717781435494,-500.0,0.00020996,2]
[328771910,1717781435504,-245.97783165,0.00020996,2]
[328771912,1717781435514,-500.0,0.00020996,2]
[328771914,1717781435523,-500.0,0.00020996,2]
[328771917,1717781435534,-500.0,0.00020996,2]
[328771918,1717781435544,-500.0,0.00020996,2]
[328771920,1717781435554,-500.0,0.00020996,2]
[328771922,1717781435564,-500.0,0.00020996,2]
[328771923,1717781435574,-500.0,0.00020996,2]
[328771924,1717781435584,-500.0,0.00020996,2]
[328771925,1717781435594,-500.0,0.00020996,2]
[328771926,1717781435603,-200.30096632,0.00020996,2]
[328771927,1717781435613,-155.0,0.00020996,2]
[328771928,1717781435623,-156.88123458,0.00020997,2]
[328771929,1717781435632,-6239.48540356,0.00020997,2]
[328771930,1717781435642,-203.55454905,0.00020998,2]
[328771931,1717781435652,-295.86866693,0.00020998,2]
[328771932,1717781435662,-156.3,0.00020998,2]
[328771933,1717781435672,-154.95351395,0.00020998,2]
[328771934,1717781435682,-154.95351395,0.00020998,2]
[328771935,1717781435691,-154.95351395,0.00020998,2]
[328771936,1717781435702,-214.52355368,0.00020998,2]
[328771937,1717781435712,-154.95351395,0.00020998,2]
[328771938,1717781435722,-8492.95021215,0.00020998,2]
[328771939,1717781435751,-7869.55,0.00020998,2]
[328772483,1717781443859,-1812.3186487,0.00020998,2]
[328772485,1717781443871,-10139.70198338,0.00020998,2]
[328772489,1717781443905,-509.05257264,0.00020998,2]
[328772491,1717781443917,-27320.82216727,0.00020998,2]
[328772493,1717781443927,-18183.68065751,0.00021,7]
[328772495,1717781443937,-24685.44488316,0.00021,2]
[328772673,1717781446970,-1000.0,0.00020829,2]
[328772674,1717781446979,-409.59,0.00020924,2]
[328772675,1717781446991,-624.53349277,0.00020924,2]
[328772676,1717781447000,-1000.0,0.00020946,2]
[328772677,1717781447010,-2763.22163269,0.00020997,2]
[328772678,1717781447019,-18751.97239113,0.00021,2]
[328772679,1717781447028,-3761.57121957,0.00021,2]
[328772680,1717781447038,-1000.0,0.00021,2]
[328772681,1717781447047,-225.09033307,0.00021,2]
[328772682,1717781447056,-13475.80399905,0.00021,2]
[328772683,1717781447066,-393.10916144,0.00021,2]
[328772684,1717781447076,-205.1978842,0.00021,2]
[328772685,1717781447085,-270.0,0.00021,2]
[328772686,1717781447095,-160.0,0.00021,2]
[328772687,1717781447104,-171.678656,0.00021,2]
[328772688,1717781447114,-310.3700167,0.00021043,2]
[328772689,1717781447123,-190.95476573,0.00021127,2]
[328772690,1717781447133,-383.3,0.00021276,5]
[328772691,1717781447142,-151.0,0.00021276,5]
[328772692,1717781447152,-154.018,0.00021317,2]
[328772693,1717781447161,-620.00351673,0.00021336,2]
[328772694,1717781447171,-190.95476573,0.00021357,2]
[328772695,1717781447180,-22284.9054,0.000215,2]
[328772696,1717781447189,-3000.0,0.000215,2]
[328772697,1717781447199,-3000.0,0.0002151,2]
[328772698,1717781447209,-3000.0,0.0002152,2]
[328772699,1717781447221,-3000.0,0.0002153,2]
[328772700,1717781447230,-3000.0,0.0002154,2]
[328772701,1717781447240,-3000.0,0.0002155,2]
[328772702,1717781447249,-3000.0,0.0002156,2]
[328772703,1717781447261,-3000.0,0.0002157,2]
[328772704,1717781447270,-3000.0,0.0002158,2]
[328772705,1717781447280,-190.95476573,0.00021587,2]
[328772706,1717781447291,-3390.870963,0.0002159,2]
[328772707,1717781447302,-409.8421013,0.00021762,2]
[328772708,1717781447312,-205.1978842,0.00021762,2]
[328772709,1717781447322,-205.1978842,0.00021762,2]
[328772710,1717781447331,-205.1978842,0.00021762,2]
[328772711,1717781447341,-410.3957684,0.00021762,2]
[328772712,1717781447350,-383.3,0.00021783,5]
[328772713,1717781447359,-151.0,0.00021783,5]
[328772714,1717781447370,-2033.0,0.000218,3]
[328772715,1717781447379,-583.8551692,0.00021812,2]
[328772716,1717781447388,-88888.0,0.00021817,3]
[328772717,1717781447398,-2000.0,0.00021817,2]
[328772718,1717781447408,-190.95476573,0.00021817,2]
[328772719,1717781447417,-499.32114645,0.00021915,2]
[328772720,1717781447426,-1467.48069478,0.00021915,3]
[328772721,1717781447435,-169.42580924,0.00021915,2]
[328772722,1717781447445,-14228.31992876,0.00021916,7]
[328772723,1717781447458,-2762.64462928,0.00021916,7]
[328772724,1717781447468,-159.83693404,0.00021916,2]
[328772725,1717781447478,-819.19281093,0.00021917,7]
[328772726,1717781447490,-953.23570508,0.00021917,7]
[328772727,1717781447499,-500.0,0.00021917,2]
[328772728,1717781447509,-120.33566468,0.00021917,2]
[328772729,1717781587238,-1000.0,0.000295,120]
[328772850,1717782633040,-1302.5,0.00015,2]
[328772851,1717782633049,-1100.27196223,0.00019405,2]
[328772852,1717782633063,-945.46842875,0.00019406,2]
[328772853,1717782633072,-173.871134,0.00019407,2]
[328772854,1717782633081,-223.6,0.00019717,3]
[328772855,1717782633090,-17799.24832822,0.00019721,2]
[328772856,1717782633102,-457.512,0.00019721,2]
[328772857,1717782633114,-4276.51968128,0.00019721,2]
[328772858,1717782633123,-931.88170639,0.0002,2]
[328772859,1717782633133,-938.35106517,0.0002017,2]
[328772860,1717782633143,-281.19763205,0.00020171,2]
[328772861,1717782633153,-223.6,0.00020227,3]
[328772862,1717782633163,-499.0,0.00020609,2]
[328772863,1717782633172,-223.6,0.00020738,3]
[328772864,1717782633182,-1192.3069457,0.00020898,2]
[328772865,1717782633191,-203.2833049,0.0002094,2]
[328772866,1717782633201,-408.6932957,0.0002094,2]
[328772867,1717782633211,-292.3309227,0.0002099,2]
[328772868,1717782633221,-292.3309227,0.0002099,2]
[328772869,1717782633230,-750.81646038,0.00020998,2]
[328772870,1717782633239,-155.90323071,0.00020998,2]
[328772871,1717782633249,-621.53846895,0.00020999,2]
[328772872,1717782633258,-14145.06217981,0.00021,2]
[328772873,1717782633268,-223.6,0.00021248,5]
[328772874,1717782633277,-154.6126418,0.00021433,2]
[328772875,1717782633286,-150.0,0.000215,2]
[328772876,1717782633295,-1982.90053047,0.00021715,2]
[328772878,1717782633305,-2148.70491174,0.00021715,2]
[328772952,1717782638970,-1004.94697453,0.00021715,2]
[328772955,1717782638982,-4219.60427539,0.00021715,2]
[328772957,1717782638994,-542.769069,0.00021715,2]
[328772959,1717782639003,-1192.3069457,0.00021723,2]
[328772961,1717782639013,-223.6,0.00021758,5]
[328772963,1717782639023,-292.3309227,0.00021812,2]
[328772965,1717782639033,-292.3309227,0.00021812,2]
[328772967,1717782639042,-292.3309227,0.00021812,2]
[328772969,1717782639052,-205.1978842,0.00021812,2]
[328772971,1717782639063,-205.1978842,0.00021812,2]
[328772973,1717782639073,-292.3309227,0.00021812,2]
[328772975,1717782639084,-292.3309227,0.00021812,2]
[328772977,1717782639094,-292.3309227,0.00021812,2]
[328772979,1717782639104,-226.84618659,0.00021812,2]
[328772981,1717782639116,-354.74191321,0.00021812,2]
[328772983,1717782639126,-292.3309227,0.00021812,2]
[328772985,1717782639137,-292.3309227,0.00021812,2]
[328772987,1717782639147,-292.3309227,0.00021812,2]
[328772989,1717782639157,-292.3309227,0.00021812,2]
[328772991,1717782639167,-292.3309227,0.00021812,2]
[328772993,1717782639177,-290.5566274,0.00021812,2]
[328772995,1717782639187,-205.1978842,0.00021812,2]
[328772997,1717782639197,-205.1978842,0.00021812,2]
[328772999,1717782639208,-292.3309227,0.00021812,2]
[328773001,1717782639218,-292.3309227,0.00021812,2]
[328773003,1717782639228,-205.1978842,0.00021812,2]
[328773005,1717782639239,-409.9658106,0.00021812,2]
[328773007,1717782639249,-385.20364936,0.00021816,2]
[328773009,1717782639260,-500.0,0.00021816,2]
[328773011,1717782639270,-500.0,0.00021816,2]
[328773013,1717782639281,-500.0,0.00021816,2]
[328773015,1717782639291,-500.0,0.00021816,2]
[328773017,1717782639301,-500.0,0.00021816,2]
[328773018,1717782639310,-373.79334949,0.00021816,2]
[328773019,1717782639320,-500.0,0.00021816,2]
[328773020,1717782639330,-27723.82853844,0.00021817,3]
[328773021,1717782639342,-61164.17146156,0.00021817,3]
[328773022,1717782639353,-2000.0,0.00021817,2]
[328773023,1717782639363,-270.0,0.000219,2]
[328773024,1717782639372,-160.0,0.000219,2]
[328773025,1717782639382,-606.170302,0.00021915,2]
[328773026,1717782639393,-154.95351395,0.00021915,2]
[328773027,1717782639402,-156.3,0.00021916,2]
[328773028,1717782639412,-1915.97061598,0.00021916,2]
[328773029,1717782639422,-9091.84032876,0.00021917,7]
[328773030,1717782639431,-886.214258,0.00021917,7]
[328773031,1717782639441,-342.68481946,0.00021917,2]
[328773032,1717782639451,-500.0,0.00021917,3]
[328773033,1717782639461,-2830.29123105,0.00021917,10]
[328773034,1717782639471,-506.38416381,0.00021917,2]
[328773035,1717782639482,-512.39767104,0.00021917,3]
[328773036,1717782639492,-500.0,0.00021917,3]
[328773037,1717782639502,-500.0,0.00021917,3]
[328773038,1717782639512,-501.65752424,0.00021917,3]
[328773039,1717782639523,-500.0,0.00021917,3]
[328773040,1717782639533,-500.0,0.00021917,3]
[328773041,1717782639544,-500.0,0.00021917,3]
[328773042,1717782639554,-500.0,0.00021917,3]
[328773043,1717782639564,-500.0,0.00021917,3]
[328773044,1717782639575,-554.85597961,0.00021917,3]
[328773046,1717782639584,-500.0,0.00021917,3]
[328773048,1717782639596,-500.0,0.00021917,3]
[328773050,1717782639612,-363.71975665,0.00021917,3]
[328773052,1717782639623,-500.0,0.00021917,3]
[328773054,1717782639634,-500.0,0.00021917,3]
[328773056,1717782639645,-500.0,0.00021917,3]
[328773058,1717782639655,-500.0,0.00021917,3]
[328773060,1717782639665,-500.0,0.00021917,3]
[328773062,1717782639675,-508.58445533,0.00021917,3]
[328773064,1717782639687,-384.50330324,0.00021917,3]
[328773067,1717782639698,-500.0,0.00021917,3]
[328773068,1717782639708,-500.0,0.00021917,3]
[328773071,1717782639719,-500.0,0.00021917,3]
[328773072,1717782639729,-592.52,0.00021917,3]
[328773075,1717782639740,-500.0,0.00021917,3]
[328773076,1717782639750,-500.0,0.00021917,3]
[328773078,1717782639766,-500.0,0.00021917,3]
[328773080,1717782639776,-500.0,0.00021917,3]
[328773082,1717782639785,-189.28216555,0.00021917,3]
[328773084,1717782639795,-500.0,0.00021917,3]
[328773086,1717782639805,-500.0,0.00021917,3]
[328773087,1717782639816,-533.26741444,0.00021917,3]
[328773089,1717782639826,-500.0,0.00021917,3]
[328773091,1717782639836,-500.0,0.00021917,3]
[328773093,1717782639845,-500.0,0.00021917,3]
[328773095,1717782639855,-500.0,0.00021917,3]
[328773096,1717782639864,-500.0,0.00021917,3]
[328773098,1717782639874,-500.0,0.00021917,3]
[328773100,1717782639884,-518.11348683,0.00021917,3]
[328773102,1717782639895,-500.0,0.00021917,3]
[328773104,1717782639905,-500.0,0.00021917,3]
[328773106,1717782639914,-500.0,0.00021917,3]
[328773108,1717782639924,-500.0,0.00021917,3]
[328773110,1717782639934,-500.0,0.00021917,3]
[328773124,1717782640048,-315.65515038,0.00021917,3]
[328773126,1717782640059,-541.56260261,0.00021917,3]
[328773128,1717782640070,-500.0,0.00021917,3]
[328773130,1717782640080,-500.0,0.00021917,3]
[328773132,1717782640090,-500.0,0.00021917,3]
[328773134,1717782640100,-500.0,0.00021917,3]
[328773136,1717782640110,-500.0,0.00021917,3]
[328773138,1717782640120,-500.0,0.00021917,3]
[328773140,1717782640130,-500.0,0.00021917,3]
[328773142,1717782640140,-544.35878835,0.00021917,3]
[328773144,1717782640150,-500.0,0.00021917,3]
[328773146,1717782640159,-500.0,0.00021917,3]
[328773148,1717782640169,-992.93,0.00021917,3]
[328773150,1717782640179,-532.4288445,0.00021917,3]
[328773152,1717782640189,-500.0,0.00021917,3]
[328773154,1717782640199,-500.0,0.00021917,3]
[328773156,1717782640209,-458.18823539,0.00021917,3]
[328773158,1717782640218,-829.62,0.00021917,3]
[328773160,1717782640228,-500.0,0.00021917,3]
[328773162,1717782640238,-500.0,0.00021917,3]
[328773164,1717782640247,-500.0,0.00021917,3]
[328773166,1717782640256,-500.0,0.00021917,3]
[328773168,1717782640266,-500.0,0.00021917,3]
[328773170,1717782640275,-500.0,0.00021917,3]
[328773172,1717782640285,-500.0,0.00021917,3]
[328773174,1717782640295,-500.0,0.00021917,3]
[328773176,1717782640305,-500.0,0.00021917,3]
[328773178,1717782640315,-167.03205706,0.00021917,3]
[328773180,1717782640326,-500.0,0.00021917,3]
[328773182,1717782640336,-500.0,0.00021917,3]
[328773184,1717782640346,-500.0,0.00021917,3]
[328773185,1717782640356,-500.0,0.00021917,3]
[328773187,1717782640366,-500.0,0.00021917,3]
[328773189,1717782640376,-503.9144113,0.00021917,3]
[328773192,1717782640387,-500.0,0.00021917,3]
[328773193,1717782640397,-503.04517928,0.00021917,3]
[328773196,1717782640407,-1000.0,0.00021917,2]
[328773198,1717782640417,-502.71104362,0.00021917,3]
[328773200,1717782640427,-500.0,0.00021917,3]
[328773202,1717782640436,-559.367184,0.00021917,3]
[328773204,1717782640446,-500.0,0.00021917,3]
[328773206,1717782640456,-380.35888303,0.00021917,3]
[328773208,1717782640466,-500.0,0.00021917,3]
[328773210,1717782640476,-403.35896355,0.00021917,3]
[328773212,1717782640486,-543.84155363,0.00021917,3]
[328773214,1717782640496,-500.0,0.00021917,3]
[328773216,1717782640506,-500.0,0.00021917,3]
[328773218,1717782640516,-500.0,0.00021917,3]
[328773220,1717782640526,-500.0,0.00021917,3]
[328773222,1717782640536,-590.12477876,0.00021917,3]
[328773224,1717782640546,-517.23,0.00021917,3]
[328773226,1717782640556,-500.0,0.00021917,3]
[328773228,1717782640567,-500.0,0.00021917,3]
[328773230,1717782640576,-500.0,0.00021917,3]
[328773232,1717782640587,-500.0,0.00021917,3]
[328773234,1717782640601,-500.0,0.00021917,3]
[328773236,1717782640611,-420.8846547,0.00021917,3]
[328773238,1717782640621,-523.91335677,0.00021917,3]
[328773240,1717782640631,-500.0,0.00021917,3]
[328773242,1717782640642,-500.0,0.00021917,3]
[328773244,1717782640651,-500.0,0.00021917,3]
[328773246,1717782640661,-1250.3,0.00021917,3]
[328773248,1717782640670,-1250.3,0.00021917,3]
[328773250,1717782640682,-1250.3,0.00021917,3]
[328773252,1717782640693,-1250.3,0.00021917,3]
[328773254,1717782640703,-1250.3,0.00021917,3]
[328773256,1717782640712,-1250.3,0.00021917,3]
[328773258,1717782640721,-1250.3,0.00021917,3]
[328773260,1717782640731,-1250.3,0.00021917,3]
[328773262,1717782640740,-1250.3,0.00021917,3]
[328773263,1717782640751,-1250.3,0.00021917,3]
[328773266,1717782640775,-1250.3,0.00021917,3]
[328773268,1717782640784,-1250.3,0.00021917,3]
[328773270,1717782640794,-500.0,0.00021917,3]
[328773271,1717782640803,-1250.3,0.00021917,3]
[328773273,1717782640813,-1250.3,0.00021917,3]
[328773276,1717782640822,-1250.3,0.00021917,3]
[328773278,1717782640832,-1250.3,0.00021917,3]
[328773279,1717782640842,-1250.3,0.00021917,3]
[328773282,1717782640851,-1250.3,0.00021917,3]
[328773284,1717782640861,-1250.3,0.00021917,3]
[328773285,1717782640870,-1250.3,0.00021917,3]
[328773287,1717782640880,-1250.3,0.00021917,3]
[328773289,1717782640889,-1250.3,0.00021917,3]
[328773290,1717782640898,-1250.3,0.00021917,3]
[328773292,1717782640908,-1250.35751979,0.00021917,3]
[328773294,1717782640918,-500.0,0.00021917,3]
[328773296,1717782640928,-500.0,0.00021917,3]
[328773298,1717782640937,-500.0,0.00021917,3]
[328773300,1717782640946,-500.0,0.00021917,2]
[328773302,1717782640956,-500.0,0.00021917,3]
[328773304,1717782640966,-500.0,0.00021917,3]
[328773306,1717782640976,-500.0,0.00021917,3]
[328773308,1717782640985,-500.0,0.00021917,3]
[328773310,1717782640995,-698.84,0.00021917,2]
[328773312,1717782641005,-1000.0,0.00021917,3]
[328773314,1717782641014,-720.89,0.00021917,3]
[328773316,1717782641024,-500.0,0.00021917,3]
[328773318,1717782641034,-500.0,0.00021917,3]
[328773320,1717782641044,-500.0,0.00021917,3]
[328773322,1717782641054,-500.0,0.00021917,3]
[328773324,1717782641065,-500.0,0.00021917,3]
[328773326,1717782641074,-500.0,0.00021917,3]
[328773328,1717782641084,-1040.66,0.00021917,3]
[328773331,1717782641104,-500.0,0.00021917,3]
[328773333,1717782641115,-500.0,0.00021917,3]
[328773335,1717782641125,-500.0,0.00021917,3]
[328773337,1717782641135,-500.0,0.00021917,3]
[328773339,1717782641145,-509.0789891,0.00021917,3]
[328773341,1717782641155,-2944.23,0.00021917,3]
[328773343,1717782641165,-570.5989635,0.00021917,3]
[328773345,1717782641176,-500.0,0.00021917,3]
[328773347,1717782641186,-564.93,0.00021917,3]
[328773349,1717782641195,-500.0,0.00021917,3]
[328773351,1717782641205,-500.0,0.00021917,3]
[328773353,1717782641215,-500.0,0.00021917,3]
[328773355,1717782641226,-500.0,0.00021917,3]
[328773357,1717782641236,-500.0,0.00021917,3]
[328773359,1717782641246,-500.0,0.00021917,3]
[328773361,1717782641256,-500.0,0.00021917,3]
[328773364,1717782641266,-500.0,0.00021917,3]
[328773367,1717782641276,-500.0,0.00021917,3]
[328773371,1717782641286,-500.0,0.00021917,3]
[328773375,1717782641296,-516.64245173,0.00021917,3]
[328773378,1717782641307,-500.0,0.00021917,3]
[328773382,1717782641318,-793.95,0.00021917,3]
[328773385,1717782641328,-500.0,0.00021917,3]
[328773388,1717782641337,-500.0,0.00021917,3]
[328773390,1717782641347,-1210.19,0.00021917,3]
[328773392,1717782641358,-500.0,0.00021917,3]
[328773394,1717782641368,-500.0,0.00021917,3]
[328773396,1717782641378,-500.0,0.00021917,3]
[328773398,1717782641388,-500.0,0.00021917,3]
[328773400,1717782641399,-500.0,0.00021917,3]
[328773402,1717782641410,-500.0,0.00021917,3]
[328773404,1717782641420,-500.0,0.00021917,3]
[328773406,1717782641430,-500.0,0.00021917,3]
[328773408,1717782641441,-500.0,0.00021917,3]
[328773410,1717782641451,-500.0,0.00021917,3]
[328773412,1717782641462,-504.34,0.00021917,3]
[328773414,1717782641472,-500.0,0.00021917,3]
[328773416,1717782641482,-500.0,0.00021917,3]
[328773418,1717782641492,-2342.39,0.00021917,3]
[328773420,1717782641502,-500.0,0.00021917,3]
[328773422,1717782641512,-500.0,0.00021917,3]
[328773425,1717782641522,-503.3550587,0.00021917,3]
[328773427,1717782641532,-2157.62,0.00021917,3]
[328773429,1717782641542,-500.0,0.00021917,3]
[328773431,1717782641552,-552.74,0.00021917,3]
[328773433,1717782641563,-829.16,0.00021917,3]
[328773435,1717782641572,-500.0,0.00021917,3]